Workbook

Sheet úvodná strana
G5: SCHVÁLENÝ ROZPOČET
G6: obce Brestovec
G7: na rok 2026
G10: bol schválený dňa 19.11.2025 Obecným zastupiteľstvom v Brestovci, uznesením číslo 103 b)
G12: Rozpočet na roky 2027, 2028 OZ Brestovec bral na vedomie dňa 19.11.2025
C16: Vypracovala: Zuzana Huryová, dňa 17.11.2025
C17: Predkladá: Peter Tóth, Starosta obce Brestovec
C18: Zverejnené pred schválením od 15.10.2025 do 29.10.2025
C19: na úradnej tabuli obce a na web stránke obce: www.brestovec.eu
C23: Zverejnené po schválení od 20.11.2025 do 04.12.2025
C24: na úradnej tabuli obce a na web stránke obce: www.brestovec.eu
G27: Peter Tóth
G28: starosta obce

Sheet Rozpočet na roky 2026-2028-
A1: Druh | B1: Funč.kl. | C1: Ekon.kl. | D1: Zdroj | E1: Názov | F1: Schválený | G1: Upravený | H1: Schválený 2024 | I1: Schválený 2025 2025 | J1: Schválený 2026 | K1: Návrh 2027 | L1: Návrh 2028
F2: 2023 | G2: 2023
A3: Príjmy
E4: 1-bežný rozpočet
C5: 111003 | D5: 41 | E5: Výnos dane z príjmov poukázaný územnej samospráve | F5: 189590 | G5: 189590 | H5: 195000 | I5: 140000 | J5: 156800 | K5: 161700 | L5: 170300
C6: 121001 | D6: 41 | E6: Z pozemkov | F6: 35185 | G6: 35185 | H6: 35200 | I6: 38300 | J6: 40050 | K6: 40050 | L6: 40050
C7: 121002 | D7: 41 | E7: Zo stavieb | F7: 9870 | G7: 9870 | H7: 10300 | I7: 10500 | J7: 10830 | K7: 10830 | L7: 10830
C8: 133001 | D8: 41 | E8: Za psa | F8: 830 | G8: 830 | H8: 830 | I8: 860 | J8: 1410 | K8: 1410 | L8: 1410
C9: 133012 | D9: 41 | E9: Za užívanie verejného priestranstva | F9: 130 | G9: 130 | H9: 140 | I9: 140 | J9: 150 | K9: 150 | L9: 150
C10: 133013 | D10: 41 | E10: Za komunálne odpady a drobné stavebné odpady | F10: 18350 | G10: 18350 | H10: 19500 | I10: 24700 | J10: 25860 | K10: 25860 | L10: 25860
C11: 212002 | D11: 41 | E11: Z prenajatých pozemkov/nájomné pohr. miesta | F11: 740 | G11: 740 | H11: 400 | I11: 800 | J11: 900 | K11: 900 | L11: 900
C12: 212003 | D12: 41 | E12: Z prenajatých budov, priestorov a objektov | F12: 32700 | G12: 32700 | H12: 33000 | I12: 33000 | J12: 33000 | K12: 33000 | L12: 33000
C13: 212004 | D13: 41 | E13: Z prenajatých strojov, prístrojov, zariadení, tech | F13: 0 | G13: 70 | H13: 70 | I13: 70 | J13: 70 | K13: 70 | L13: 70
C14: 221002 | D14: 41 | E14: Správne poplatky | F14: 3200 | G14: 3200 | H14: 3300 | I14: 3300 | J14: 3000 | K14: 3000 | L14: 3000
C15: 223001 | D15: 41 | E15: Za predaj výrobkov, tovarov a služieb/NB služby | F15: 13400 | G15: 13400 | H15: 13500 | I15: 12200 | J15: 12200 | K15: 12200 | L15: 12200
C16: 223001 | D16: 41 | E16: Za predaj výrobkov, tovarov a služieb/za odvoz. odpadovej vody | F16: 0 | G16: 0 | H16: 0 | I16: 300 | J16: 300 | K16: 400 | L16: 400
C17: 223001 | D17: 41 | E17: Za predaj výrobkov, tovarov a služieb/cint. popl., rozhlas. popl. | F17: 0 | G17: 0 | H17: 0 | I17: 200 | J17: 200 | K17: 300 | L17: 300
C18: 223002 | D18: 41 | E18: Za školy a školské zariadenia/príjem od rodičov Mš | F18: 1300 | G18: 1300 | H18: 1300 | I18: 1300 | J18: 1300 | K18: 1500 | L18: 1500
C19: 292012 | D19: 41 | E19: Z dobropisov | F19: 0 | G19: 3850 | H19: 0 | I19: 0 | J19: 0 | K19: 0 | L19: 0
C20: 292017 | D20: 41 | E20: Z vratiek/preplatky ZP- zamestnávateľ, Dôvera / | F20: 0 | G20: 92 | H20: 0 | I20: 0 | J20: 0 | K20: 0 | L20: 0
C21: 312001 | D21: 111 | E21: Zo štátneho rozpočtu okrem transferu na úhradu nák | F21: 0 | G21: 1280 | H21: 0 | I21: 0 | J21: 0 | K21: 0 | L21: 0
C22: 312001 | D22: 111 | E22: Zo štátneho rozpočtu okrem transferu na úhradu nák | F22: 0 | G22: 2090 | H22: 0 | I22: 0 | J22: 0 | K22: 0 | L22: 0
C23: 312001 | D23: 11UA | E23: Zo štátneho rozpočtu okrem transferu na úhradu nák | F23: 0 | G23: 2430 | H23: 0 | I23: 0 | J23: 0 | K23: 0 | L23: 0
C24: 312001 | D24: 3AJ1 | E24: Zo štátneho rozpočtu okrem transferu na úhradu nák | F24: 0 | G24: 2350 | H24: 0 | I24: 0 | J24: 0 | K24: 0 | L24: 0
C25: 312001 | D25: 3AJ2 | E25: Zo štátneho rozpočtu okrem transferu na úhradu nák | F25: 0 | G25: 6940 | H25: 0 | I25: 0 | J25: 0 | K25: 0 | L25: 0
C26: 312002 | D26: 45 | E26: Dotácia z Environm. fondu/bežný transfer | F26: 0 | G26: 2560 | H26: 0 | I26: 0 | J26: 0 | K26: 0 | L26: 0
C27: 312007 | D27: 11H | E27: Z rozpočtu obce | F27: 0 | G27: 60 | H27: 0 | I27: 0 | J27: 0 | K27: 0 | L27: 0
C28: 312008 | D28: 11H | E28: Z rozpočtu vyššieho územného celku | F28: 0 | G28: 2029 | H28: 0 | I28: 0 | J28: 0 | K28: 0 | L28: 0
C29: 312012 | D29: 111 | E29: Transfery zo ŠR na prenesený výkon štátnej správy- Materská škola | F29: 0 | G29: 0 | H29: 0 | I29: 60500 | J29: 62000 | K29: 63000 | L29: 64000
C30: 312012 | D30: 111 | E30: Transfery zo ŠR na prenesený výkon štátnej správy- register obyvateľstva, register adries, živ. prostr. | F30: 3400 | G30: 2950 | H30: 3800 | I30: 260 | J30: 260 | K30: 270 | L30: 270
C31: 315 | D31: 71 | E31: Transfery od subjektov nezaradených vo verejnej sp | F31: 3000 | G31: 3000 | H31: 3000 | I31: 3000 | J31: 3000 | K31: 3000 | L31: 3000
C32: 331001 | D32: 35 | E32: Od zahraničného subjektu iného ako medzinárodná or | F32: 0 | G32: 2910 | H32: 0 | I32: 0 | J32: 0 | K32: 0 | L32: 0
C33: 341 | D33: 1AJ1 | E33: Prostriedky z rozpočtu Európskej únie PROFOUND | F33: 0 | G33: 16610 | H33: 0 | I33: 0 | J33: 0 | K33: 0 | L33: 0
A34: *1 | E34: 1-bežný rozpočet | F34: =SUM(F5:F33) -> 311695 | G34: 354516 | H34: 319340 | I34: 329430 | J34: 351330 | K34: 357640 | L34: 367240
A35: 2 | E35: 2-kapitálový rozpočet
C36: 322006 | D36: 11H | E36: Z rozpočtu vyššieho územného celku | F36: 0 | G36: 4986 | H36: 0 | I36: 0 | J36: 0 | K36: 0 | L36: 0
A37: *2 | E37: 2-kapitálový rozpočet | F37: 0 | G37: 4986 | H37: 0 | I37: 0 | J37: 0 | K37: 0 | L37: 0
A38: 3 | E38: 3-finančné operácie
C39: 453 | D39: 131M | E39: Prostriedky z predchádzajúcich rokov | F39: 0 | G39: 1299 | H39: 0 | I39: 0 | J39: 0 | K39: 0 | L39: 0
C40: 453 | D40: 46 | E40: Prostriedky z predchádzajúcich rokov | F40: 0 | G40: 500 | H40: 0 | I40: 0 | J40: 0 | K40: 0 | L40: 0
C41: 513001 | D41: 52 | E41: Krátkodobé | F41: 0 | G41: 17225 | H41: 0 | I41: 0 | J41: 0 | K41: 0 | L41: 0
C42: 513002 | D42: 52 | E42: Dlhodobé- SZRB úver /HUSKRISK...EU, ŠR, VZ | F42: 0 | G42: 0 | H42: 0 | I42: 16184 | J42: 0 | K42: 0 | L42: 0
A43: *3 | E43: 3-finančné operácie | F43: 0 | G43: 19024 | H43: 0 | I43: 16184 | J43: 0 | K43: 0 | L43: 0
A44: Spolu | E44: Príjmy spolu | F44: 311695 | G44: 378526 | H44: 319340 | I44: 345614 | J44: =SUM(J34:J43) -> 351330 | K44: =SUM(K34:K43) -> 357640 | L44: =SUM(L34:L43) -> 367240
A46: Výdaje
A47: 1 | E47: 1-bežný rozpočet
B48: 01.1.1 obecný úrad | C48: 611 | D48: 1AJ1 | E48: Tarifný plat, osobný plat, základný plat, funkčný | F48: 0 | G48: 16610 | H48: 0 | I48: 0 | J48: 0 | K48: 0 | L48: 0
B49: 01.1.1 | C49: 611 | D49: 41 | E49: Tarifný plat, osobný plat, základný plat, funkčný | F49: 71700 | G49: 55090 | H49: 73000 | I49: 73000 | J49: 80790 | K49: 82000 | L49: 83000
B50: 01.1.1 | C50: 612001 | D50: 41 | E50: Osobný príplatok | F50: 12210 | G50: 12210 | H50: 12000 | I50: 12000 | J50: 12800 | K50: 12500 | L50: 13000
B51: 01.1.1 | C51: 621 | D51: 41 | E51: Poistné do Všeobecnej zdravotnej poisťovne | F51: 2190 | G51: 2190 | H51: 2200 | I51: 2200 | J51: 2690 | K51: 2800 | L51: 2900
B52: 01.1.1 | C52: 623 | D52: 41 | E52: Poistné do ostatných zdravotných poisťovní | F52: 6200 | G52: 6200 | H52: 6300 | I52: 6300 | J52: 7320 | K52: 7400 | L52: 7500
B53: 01.1.1 | C53: 625001 | D53: 41 | E53: Na nemocenské poistenie | F53: 1170 | G53: 1170 | H53: 1190 | I53: 1190 | J53: 1310 | K53: 1300 | L53: 1350
B54: 01.1.1 | C54: 625002 | D54: 41 | E54: Na starobné poistenie | F54: 11750 | G54: 11750 | H54: 11800 | I54: 11800 | J54: 13100 | K54: 13300 | L54: 13700
B55: 01.1.1 | C55: 625003 | D55: 41 | E55: Na úrazové poistenie | F55: 670 | G55: 670 | H55: 680 | I55: 680 | J55: 750 | K55: 770 | L55: 800
B56: 01.1.1 | C56: 625004 | D56: 41 | E56: Na invalidné poistenie | F56: 2515 | G56: 2515 | H56: 2550 | I56: 2550 | J56: 2800 | K56: 3000 | L56: 3200
B57: 01.1.1 | C57: 625005 | D57: 41 | E57: Na poistenie v nezamestnanosti | F57: 840 | G57: 840 | H57: 420 | I57: 420 | J57: 470 | K57: 500 | L57: 520
B58: 01.1.1 | C58: 625005 | D58: 41 | E58: financovanie podpory | F58: 0 | G58: 55 | H58: 420 | I58: 420 | J58: 470 | K58: 500 | L58: 520
B59: 01.1.1 | C59: 625007 | D59: 41 | E59: Na poistenie do rezervného fondu solidarity | F59: 4002 | G59: 4002 | H59: 4000 | I59: 4000 | J59: 4450 | K59: 4600 | L59: 4700
B60: 01.1.1 | C60: 627 | D60: 41 | E60: Príspevok do doplnkových dôchodkových poisťovní | F60: 1885 | G60: 1885 | H60: 1800 | I60: 1800 | J60: 1330 | K60: 1400 | L60: 1450
B61: 01.1.1 | C61: 631001 | D61: 41 | E61: Tuzemské | F61: 2000 | G61: 200 | H61: 100 | I61: 100 | J61: 100 | K61: 110 | L61: 120
B62: 01.1.1 | C62: 632001 | D62: 111 | E62: Energie | F62: 0 | G62: 500 | H62: 0 | I62: 0 | J62: 0 | K62: 0 | L62: 0
B63: 01.1.1 | C63: 632001 | D63: 41 | E63: Energie | F63: 4000 | G63: 4000 | H63: 4000 | I63: 4000 | J63: 4000 | K63: 4000 | L63: 4100
B64: 01.1.1 | C64: 632002 | D64: 41 | E64: Vodné, stočné | F64: 130 | G64: 130 | H64: 140 | I64: 140 | J64: 140 | K64: 150 | L64: 150
B65: 01.1.1 | C65: 632003 | D65: 41 | E65: Poštové služby | F65: 500 | G65: 500 | H65: 550 | I65: 550 | J65: 550 | K65: 600 | L65: 600
B66: 01.1.1 | C66: 632004 | D66: 41 | E66: Komunikačná infraštruktúra | F66: 220 | G66: 220 | H66: 0 | I66: 0 | J66: 0 | K66: 0 | L66: 0
B67: 01.1.1 | C67: 632005 | D67: 41 | E67: Telekomunikačné služby | F67: 930 | G67: 930 | H67: 720 | I67: 720 | J67: 720 | K67: 720 | L67: 750
B68: 01.1.1 | C68: 633003 | D68: 41 | E68: Telekomunikačná technika | F68: 190 | G68: 190 | H68: 0 | I68: 0 | J68: 0 | K68: 0 | L68: 0
B69: 01.1.1 | C69: 633006 | D69: 111 | E69: Všeobecný materiál | F69: 210 | G69: 210 | H69: 185 | I69: 200 | J69: 200 | K69: 200 | L69: 200
B70: 01.1.1 | C70: 633006 | D70: 41 | E70: Všeobecný materiál | F70: 1700 | G70: 1700 | H70: 600 | I70: 600 | J70: 600 | K70: 1000 | L70: 1000
B71: 01.1.1 | C71: 633009 | D71: 41 | E71: Knihy, časopisy, noviny , učebnice, učebné pomôcky | F71: 450 | G71: 450 | H71: 100 | I71: 100 | J71: 100 | K71: 100 | L71: 150
B72: 01.1.1 | C72: 633011 | D72: 41 | E72: Potraviny | F72: 300 | G72: 300 | H72: 300 | I72: 300 | J72: 300 | K72: 300 | L72: 300
B73: 01.1.1 | C73: 633013 | D73: 41 | E73: Softvér | F73: 500 | G73: 500 | H73: 0 | I73: 0 | J73: 0 | K73: 0 | L73: 0
B74: 01.1.1 | C74: 633016 | D74: 35 | E74: Reprezentačné | F74: 0 | G74: 12 | H74: 0 | I74: 0 | J74: 0 | K74: 0 | L74: 0
B75: 01.1.1 | C75: 633016 | D75: 41 | E75: Reprezentačné | F75: 1000 | G75: 1000 | H75: 500 | I75: 500 | J75: 500 | K75: 600 | L75: 700
B76: 01.1.1 | C76: 634004 | D76: 41 | E76: Prepravné a nájom dopravných prostriedkov | F76: 0 | G76: 65 | H76: 0 | I76: 0 | J76: 0 | K76: 0 | L76: 0
B77: 01.1.1 | C77: 634005 | D77: 41 | E77: Karty, známky, poplatky | F77: 0 | G77: 50 | H77: 0 | I77: 0 | J77: 0 | K77: 0 | L77: 0
B78: 01.1.1 | C78: 635004 | D78: 41 | E78: Prevádzkových strojov, prístrojov, zariadení, tech | F78: 0 | G78: 170 | H78: 50 | I78: 50 | J78: 50 | K78: 60 | L78: 70
B79: 01.1.1 | C79: 635009 | D79: 41 | E79: Softvéru | F79: 600 | G79: 600 | H79: 650 | I79: 650 | J79: 650 | K79: 660 | L79: 700
B80: 01.1.1 | C80: 635011 | D80: 41 | E80: Špecializovaného konfigurovateľného softvéru a kra | F80: 0 | G80: 115 | H80: 120 | I80: 120 | J80: 120 | K80: 130 | L80: 140
B81: 01.1.1 | C81: 637002 | D81: 11H | E81: Konkurzy a súťaže | F81: 0 | G81: 60 | H81: 0 | I81: 0 | J81: 0 | K81: 0 | L81: 0
B82: 01.1.1 | C82: 637002 | D82: 41 | E82: Konkurzy a súťaže | F82: 100 | G82: 1000 | H82: 400 | I82: 400 | J82: 400 | K82: 500 | L82: 500
B83: 01.1.1 | C83: 637004 | D83: 35 | E83: Všeobecné služby | F83: 0 | G83: 523 | H83: 0 | I83: 0 | J83: 0 | K83: 0 | L83: 0
B84: 01.1.1 | C84: 637004 | D84: 41 | E84: Všeobecné služby | F84: 7300 | G84: 6800 | H84: 2000 | I84: 2000 | J84: 2925 | K84: 3545 | L84: 4180
B85: 01.1.1 | C85: 637005 | D85: 35 | E85: Špeciálne služby | F85: 0 | G85: 400 | H85: 0 | I85: 0 | J85: 0 | K85: 0 | L85: 0
B86: 01.1.1 | C86: 637005 | D86: 41 | E86: Špeciálne služby | F86: 1500 | G86: 1100 | H86: 1200 | I86: 1200 | J86: 1200 | K86: 1200 | L86: 1300
B87: 01.1.1 | C87: 637011 | D87: 41 | E87: Štúdie, expertízy, posudky | F87: 500 | G87: 0 | H87: 0 | I87: 0 | J87: 0 | K87: 0 | L87: 0
B88: 01.1.1 | C88: 637012 | D88: 41 | E88: Poplatky a odvody | F88: 100 | G88: 100 | H88: 30 | I88: 30 | J88: 30 | K88: 30 | L88: 30
B89: 01.1.1 | C89: 637014 | D89: 41 | E89: Stravovanie | F89: 1800 | G89: 1800 | H89: 1900 | I89: 1900 | J89: 3600 | K89: 3600 | L89: 3700
B90: 01.1.1 | C90: 637015 | D90: 41 | E90: Poistné | F90: 1000 | G90: 1000 | H90: 1300 | I90: 1300 | J90: 1300 | K90: 1300 | L90: 1300
B91: 01.1.1 | C91: 637016 | D91: 41 | E91: Prídel do sociálneho fondu | F91: 1000 | G91: 1000 | H91: 850 | I91: 850 | J91: 850 | K91: 860 | L91: 870
B92: 01.1.1poslanci | C92: 637026 | D92: 41 | E92: Odmeny a príspevky | F92: 1680 | G92: 1680 | H92: 1600 | I92: 1600 | J92: 1600 | K92: 1600 | L92: 1600
B93: 01.1.1 | C93: 637031 | D93: 41 | E93: Pokuty a penále | F93: 100 | G93: 100 | H93: 100 | I93: 100 | J93: 100 | K93: 100 | L93: 100
B94: 01.1.1 cattering | C94: 637036 | D94: 41 | E94: Reprezentačné výdavky | F94: 200 | G94: 900 | H94: 200 | I94: 200 | J94: 200 | K94: 200 | L94: 200
B95: 01.1.1 | C95: 637040 | D95: 41 | E95: Služby v oblasti informačno-komunikačných technoló | F95: 110 | G95: 110 | H95: 120 | I95: 120 | J95: 120 | K95: 130 | L95: 130
B96: 01.1.1 | C96: 642001 | D96: 131M | E96: Občianskemu združeniu, nadácii a neinvestičnému fo | F96: 0 | G96: 625 | H96: 0 | I96: 0 | J96: 0 | K96: 0 | L96: 0
B97: 01.1.1 | C97: 642001 | D97: 3AJ2 | E97: Občianskemu združeniu, nadácii a neinvestičnému fo | F97: 0 | G97: 5220 | H97: 0 | I97: 0 | J97: 0 | K97: 0 | L97: 0
B98: 01.1.1 | C98: 642006 | D98: 41 | E98: Na členské príspevky | F98: 900 | G98: 900 | H98: 1100 | I98: 1100 | J98: 1100 | K98: 1100 | L98: 1100
B99: 01.1.1 | C99: 642015 | D99: 41 | E99: Na nemocenské dávky | F99: 0 | G99: 125 | H99: 0 | I99: 0 | J99: 0 | K99: 0 | L99: 0
B100: 01.1.2 Finančné a rozpočtové záležitosti | C100: 637005 | D100: 35 | E100: Špeciálne služby | F100: 0 | G100: 1100 | H100: 0 | I100: 0 | J100: 0 | K100: 0 | L100: 0
B101: 01.1.2 audítosrké služby | C101: 637005 | D101: 41 | E101: Špeciálne služby | F101: 1000 | G101: 0 | H101: 1200 | I101: 1200 | J101: 1200 | K101: 1200 | L101: 1200
B102: 01.1.2 bankové poplatky | C102: 637012 | D102: 41 | E102: Poplatky a odvody | F102: 700 | G102: 700 | H102: 720 | I102: 720 | J102: 720 | K102: 750 | L102: 800
B103: 01.6.0 | C103: 614 | D103: 111 | E103: Odmeny | F103: 60 | G103: 60 | H103: 0 | I103: 0 | J103: 0 | K103: 0 | L103: 0
B104: 01.6.0 | C104: 625001 | D104: 111 | E104: Na nemocenské poistenie | F104: 0 | G104: 1 | H104: 0 | I104: 0 | J104: 0 | K104: 0 | L104: 0
B105: 01.6.0 | C105: 625002 | D105: 111 | E105: Na starobné poistenie | F105: 0 | G105: 10 | H105: 0 | I105: 0 | J105: 0 | K105: 0 | L105: 0
B106: 01.6.0 | C106: 625003 | D106: 111 | E106: Na úrazové poistenie | F106: 0 | G106: 1 | H106: 0 | I106: 0 | J106: 0 | K106: 0 | L106: 0
B107: 01.6.0 | C107: 625004 | D107: 111 | E107: Na invalidné poistenie | F107: 0 | G107: 2 | H107: 0 | I107: 0 | J107: 0 | K107: 0 | L107: 0
B108: 01.6.0 | C108: 625005 | D108: 111 | E108: Na poistenie v nezamestnanosti | F108: 0 | G108: 1 | H108: 0 | I108: 0 | J108: 0 | K108: 0 | L108: 0
B109: 01.6.0 | C109: 625007 | D109: 111 | E109: Na poistenie do rezervného fondu solidarity | F109: 0 | G109: 3 | H109: 0 | I109: 0 | J109: 0 | K109: 0 | L109: 0
B110: 01.6.0 | C110: 631001 | D110: 131M | E110: Tuzemské | F110: 0 | G110: 10 | H110: 0 | I110: 0 | J110: 0 | K110: 0 | L110: 0
B111: 01.6.0 | C111: 632005 | D111: 111 | E111: Telekomunikačné služby | F111: 0 | G111: 5 | H111: 0 | I111: 0 | J111: 0 | K111: 0 | L111: 0
B112: 01.6.0 | C112: 633006 | D112: 111 | E112: Všeobecný materiál | F112: 0 | G112: 30 | H112: 0 | I112: 0 | J112: 0 | K112: 0 | L112: 0
B113: 01.6.0 | C113: 633016 | D113: 131M | E113: Reprezentačné | F113: 0 | G113: 12 | H113: 0 | I113: 0 | J113: 0 | K113: 0 | L113: 0
B114: 01.6.0 | C114: 637007 | D114: 131M | E114: Cestovné náhrady | F114: 0 | G114: 5 | H114: 0 | I114: 0 | J114: 0 | K114: 0 | L114: 0
B115: 01.6.0 | C115: 637014 | D115: 131M | E115: Stravovanie | F115: 0 | G115: 90 | H115: 0 | I115: 0 | J115: 0 | K115: 0 | L115: 0
B116: 01.6.0 | C116: 637026 | D116: 111 | E116: Odmeny a príspevky | F116: 400 | G116: 400 | H116: 0 | I116: 0 | J116: 0 | K116: 0 | L116: 0
B117: 01.6.0 | C117: 637026 | D117: 131M | E117: Odmeny a príspevky | F117: 0 | G117: 410 | H117: 0 | I117: 0 | J117: 0 | K117: 0 | L117: 0
B118: 01.6.0 | C118: 637027 | D118: 111 | E118: Odmeny zamestnancov mimopracovného pomeru | F118: 0 | G118: 15 | H118: 0 | I118: 0 | J118: 0 | K118: 0 | L118: 0
B119: 01.6.0 | C119: 637037 | D119: 111 | E119: Vratky | F119: 0 | G119: 207 | H119: 0 | I119: 0 | J119: 0 | K119: 0 | L119: 0
B120: 01.6.0 | C120: 637037 | D120: 131M | E120: Vratky | F120: 0 | G120: 147 | H120: 0 | I120: 0 | J120: 0 | K120: 0 | L120: 0
B121: 01.7.0 Prima: úrok z úveru | C121: 651002 | D121: 41 | E121: Banke a pobočke zahraničnej banky | F121: 1000 | G121: 1000 | H121: 2000 | I121: 2000 | J121: 1900 | K121: 1600 | L121: 1400
B122: 01.7.0 ŠFRB: úrok z úveru | C122: 651003 | D122: 41 | E122: Subjektu verejnej správy | F122: 7350 | G122: 7350 | H122: 4870 | I122: 4650 | J122: 4650 | K122: 4470 | L122: 4300
B123: 01.7.0 Prima: popl. správa o úvere | C123: 653001 | D123: 41 | E123: Manipulačné poplatky | F123: 120 | G123: 120 | H123: 40 | I123: 200 | J123: 0 | K123: 0 | L123: 0
B124: 01.7.0 Prima: záväzková provízia | C124: 653002 | D124: 41 | E124: Provízie | F124: 0 | G124: 30 | H124: 20 | I124: 20 | J124: 20 | K124: 15 | L124: 10
B125: 01.7.0 | C125: 653002 | D125: 41 | E125: Záv. provízia ŠFRB | F125: 50 | G125: 50 | H125: 0 | I125: 0 | J125: 0 | K125: 0 | L125: 0
B126: 03.2 požiarna ochrana | C126: 637036 | D126: 41 | E126: Reprezentačné výdavky | F126: 0 | G126: 0 | H126: 0 | I126: 0 | J126: 0 | K126: 0 | L126: 0
B127: 03.2.0 | C127: 623 | D127: 41 | E127: Poistné do ostatných zdravotných poisťovní | F127: 0 | G127: 25 | H127: 0 | I127: 0 | J127: 0 | K127: 0 | L127: 0
B128: 03.2.0 | C128: 625001 | D128: 41 | E128: Na nemocenské poistenie PROFOUND | F128: 0 | G128: 4 | H128: 0 | I128: 0 | J128: 0 | K128: 0 | L128: 0
B129: 03.2.0 | C129: 625002 | D129: 41 | E129: Na starobné poistenie PROFOUND | F129: 0 | G129: 135 | H129: 0 | I129: 0 | J129: 0 | K129: 0 | L129: 0
B130: 03.2.0 | C130: 625003 | D130: 41 | E130: Na úrazové poistenie PROFOUND | F130: 0 | G130: 8 | H130: 0 | I130: 0 | J130: 0 | K130: 0 | L130: 0
B131: 03.2.0 | C131: 625004 | D131: 41 | E131: Na invalidné poistenie PROFOUND | F131: 0 | G131: 29 | H131: 0 | I131: 0 | J131: 0 | K131: 0 | L131: 0
B132: 03.2.0 | C132: 625005 | D132: 41 | E132: Na poistenie v nezamestnanosti PROFOUND | F132: 0 | G132: 3 | H132: 0 | I132: 0 | J132: 0 | K132: 0 | L132: 0
B133: 03.2.0 | C133: 625007 | D133: 41 | E133: Na poistenie do rezervn fondu solidarity PROFOUND | F133: 0 | G133: 45 | H133: 0 | I133: 0 | J133: 0 | K133: 0 | L133: 0
B134: 03.2.0 | C134: 631002 | D134: 41 | E134: Zahraničné | F134: 100 | G134: 100 | H134: 0 | I134: 0 | J134: 0 | K134: 0 | L134: 0
B135: 03.2.0 | C135: 633004 | D135: 41 | E135: Prevádzkové stroje, prístroje, zariadenie, technik | F135: 100 | G135: 500 | H135: 150 | I135: 150 | J135: 0 | K135: 0 | L135: 0
B136: 03.2.0 | C136: 633004 | D136: 71 | E136: Prevádzkové stroje, prístroje, zariadenie, technik | F136: 1500 | G136: 0 | H136: 0 | I136: 0 | J136: 0 | K136: 0 | L136: 0
B137: 03.2.0 | C137: 633006 | D137: 41 | E137: Všeobecný materiál RISKHUB | F137: 200 | G137: 200 | H137: 0 | I137: 0 | J137: 0 | K137: 0 | L137: 0
B138: 03.2.0 | C138: 633010 | D138: 71 | E138: Pracovné odevy, obuv a pracovné pomôcky | F138: 1500 | G138: 3000 | H138: 3000 | I138: 3000 | J138: 3000 | K138: 3000 | L138: 3000
B139: 03.2.0 | C139: 633016 | D139: 41 | E139: Reprezentačné | F139: 100 | G139: 100 | H139: 0 | I139: 0 | J139: 0 | K139: 0 | L139: 0
B140: 03.2.0 | C140: 634001 | D140: 41 | E140: Fiat,Rexton - Palivo, mazivá, oleje, špeciálne kvapaliny | F140: 1000 | G140: 1000 | H140: 1000 | I140: 1000 | J140: 1500 | K140: 1700 | L140: 1800
B141: 03.2.0 | C141: 634002 | D141: 41 | E141: Servis, údržba, opravy a výdavky s tým spojené | F141: 500 | G141: 500 | H141: 100 | I141: 100 | J141: 100 | K141: 100 | L141: 150
B142: 03.2.0 | C142: 634002 | D142: 41 | E142: frekvencia DHZ-požiarna služba | F142: 0 | G142: 25 | H142: 30 | I142: 70 | J142: 70 | K142: 70 | L142: 70
B143: 03.2.0 | C143: 634003 | D143: 41 | E143: Poistenie | F143: 1030 | G143: 1030 | H143: 1030 | I143: 1030 | J143: 1500 | K143: 1500 | L143: 1500
B144: 03.2.0 | C144: 634005 | D144: 41 | E144: Karty, známky, poplatky | F144: 150 | G144: 150 | H144: 150 | I144: 150 | J144: 150 | K144: 150 | L144: 180
B145: 03.2.0 | C145: 637001 | D145: 41 | E145: Školenia, kurzy, semináre, porady, PROFOUND VZ | F145: 200 | G145: 0 | H145: 0 | I145: 0 | J145: 0 | K145: 0 | L145: 0
B146: 03.2.0. | C146: 630 | D146: 52 | E146: Školenie, kurzy, semináre, porady, materiál HUSKRISK VZ | F146: 0 | G146: 0 | H146: 0 | I146: 3511 | J146: 0 | K146: 0 | L146: 0
B147: 03.2.0 | C147: 630 | D147: 52 | E147: Školenia, kurzy, semináre, porady, materiál HUSKRISK EU, ŠR | F147: 0 | G147: 0 | H147: 0 | I147: 9519 | J147: 0 | K147: 0 | L147: 0
B148: 03.2.0 | C148: 637027 | D148: 41 | E148: Odmeny zamestnancov mimopr. pom. PROFOUND | F148: 0 | G148: 955 | H148: 0 | I148: 0 | J148: 0 | K148: 0 | L148: 0
B149: 04.4.3 prísp. pre spol. stav.úrad | C149: 641006 | D149: 41 | E149: Rozpočtovej organizácii | F149: 400 | G149: 400 | H149: 300 | I149: 400 | J149: 400 | K149: 400 | L149: 400
B150: 04.5.1 | C150: 633006 | D150: 41 | E150: Všeobecný materiál | F150: 0 | G150: 300 | H150: 0 | I150: 0 | J150: 0 | K150: 0 | L150: 0
B151: 04.7.3 | C151: 637002 | D151: 11H | E151: Konkurzy a súťaže | F151: 0 | G151: 1029 | H151: 0 | I151: 0 | J151: 0 | K151: 0 | L151: 0
B152: 04.7.3 | C152: 637002 | D152: 41 | E152: Konkurzy a súťaže | F152: 0 | G152: 250 | H152: 0 | I152: 0 | J152: 0 | K152: 0 | L152: 0
B153: 05.1.0 odpad | C153: 611 | D153: 41 | E153: Tarifný plat, osobný plat, základný plat, funkčný | F153: 19260 | G153: 19260 | H153: 21900 | I153: 21900 | J153: 24000 | K153: 24000 | L153: 24000
B154: 05.1.0 | C154: 623 | D154: 41 | E154: Poistné do ostatných zdravotných poisťovní | F154: 1925 | G154: 1925 | H154: 2180 | I154: 2180 | J154: 2640 | K154: 2640 | L154: 2640
B155: 05.1.0 | C155: 625001 | D155: 41 | E155: Na nemocenské poistenie | F155: 270 | G155: 270 | H155: 300 | I155: 300 | J155: 336 | K155: 336 | L155: 336
B156: 05.1.0 | C156: 625002 | D156: 41 | E156: Na starobné poistenie | F156: 2695 | G156: 2695 | H156: 3000 | I156: 3000 | J156: 3360 | K156: 3360 | L156: 3360
B157: 05.1.0 | C157: 625003 | D157: 41 | E157: Na úrazové poistenie | F157: 154 | G157: 154 | H157: 170 | I157: 170 | J157: 190 | K157: 190 | L157: 190
B158: 05.1.0 | C158: 625004 | D158: 41 | E158: Na invalidné poistenie | F158: 575 | G158: 575 | H158: 600 | I158: 600 | J158: 720 | K158: 720 | L158: 720
B159: 05.1.0 | C159: 625005 | D159: 41 | E159: Na poistenie v nezamestnanosti | F159: 190 | G159: 190 | H159: 110 | I159: 110 | J159: 120 | K159: 120 | L159: 120
B160: 05.1.0 | C160: 625005 | D160: 41 | E160: Financovanie podpory | F160: 0 | G160: 0 | H160: 110 | I160: 110 | J160: 120 | K160: 120 | L160: 120
B161: 05.1.0 | C161: 625007 | D161: 41 | E161: Na poistenie do rezervného fondu solidarity | F161: 915 | G161: 915 | H161: 1040 | I161: 1040 | J161: 1140 | K161: 1140 | L161: 1140
B162: 05.1.0 | C162: 627 | D162: 41 | E162: Príspevok do doplnkových dôchodkových poisťovní | F162: 270 | G162: 270 | H162: 290 | I162: 290 | J162: 330 | K162: 330 | L162: 330
B163: 05.1.0 | C163: 632001 | D163: 111 | E163: Energie | F163: 0 | G163: 380 | H163: 0 | I163: 0 | J163: 0 | K163: 0 | L163: 0
B164: 05.1.0 | C164: 632001 | D164: 41 | E164: Energie | F164: 1000 | G164: 3000 | H164: 1000 | I164: 1000 | J164: 1000 | K164: 1000 | L164: 1000
B165: 05.1.0 | C165: 633006 | D165: 41 | E165: Všeobecný materiál | F165: 50 | G165: 50 | H165: 0 | I165: 0 | J165: 0 | K165: 0 | L165: 0
B166: 05.1.0 | C166: 633010 | D166: 41 | E166: Pracovné odevy, obuv a pracovné pomôcky | F166: 50 | G166: 50 | H166: 0 | I166: 0 | J166: 0 | K166: 0 | L166: 0
B167: 05.1.0 traktor | C167: 634001 | D167: 41 | E167: Palivo, mazivá, oleje, špeciálne kvapaliny | F167: 3000 | G167: 3000 | H167: 2000 | I167: 2000 | J167: 2000 | K167: 2500 | L167: 2500
B168: 05.1.0 | C168: 634002 | D168: 41 | E168: Servis, údržba, opravy a výdavky s tým spojené | F168: 500 | G168: 1500 | H168: 300 | I168: 300 | J168: 300 | K168: 300 | L168: 400
B169: 05.1.0 | C169: 634003 | D169: 41 | E169: Poistenie | F169: 850 | G169: 850 | H169: 1200 | I169: 800 | J169: 800 | K169: 800 | L169: 800
B170: 05.1.0 | C170: 637004 | D170: 3AJ1 | E170: Všeobecné služby | F170: 0 | G170: 2350 | H170: 0 | I170: 0 | J170: 0 | K170: 0 | L170: 0
B171: 05.1.0 | C171: 637004 | D171: 3AJ2 | E171: Všeobecné služby | F171: 0 | G171: 1720 | H171: 0 | I171: 0 | J171: 0 | K171: 0 | L171: 0
B172: 05.1.0 odvoz a ulož. Odpadu | C172: 637004 | D172: 41 | E172: Všeobecné služby | F172: 11000 | G172: 4650 | H172: 10900 | I172: 10900 | J172: 16000 | K172: 16000 | L172: 16000
B173: 05.1.0 | C173: 637004 | D173: 45 | E173: Všeobecné služby | F173: 0 | G173: 2560 | H173: 0 | I173: 0 | J173: 0 | K173: 0 | L173: 0
B174: 05.1.0 popl. za ulož. Odpadu | C174: 637012 | D174: 41 | E174: Poplatky a odvody | F174: 2000 | G174: 2000 | H174: 2000 | I174: 2000 | J174: 2000 | K174: 2000 | L174: 2000
B175: 05.1.0 | C175: 637014 | D175: 41 | E175: Stravovanie | F175: 1100 | G175: 1100 | H175: 1100 | I175: 1100 | J175: 1500 | K175: 1600 | L175: 1600
B176: 05.1.0 | C176: 637016 | D176: 41 | E176: Prídel do sociálneho fondu | F176: 250 | G176: 250 | H176: 230 | I176: 230 | J176: 270 | K176: 280 | L176: 290
B177: 05.4.0 | C177: 642029 | D177: 41 | E177: Na náhradu-za stratu mimoprodukčn. funkcií lesa | F177: 0 | G177: 1310 | H177: 0 | I177: 0 | J177: 0 | K177: 0 | L177: 0
B178: 05.6.0 | C178: 633006 | D178: 111 | E178: Všeobecný materiál | F178: 50 | G178: 50 | H178: 0 | I178: 0 | J178: 0 | K178: 0 | L178: 0
B179: 06.1.0 Nájomné byty | C179: 632001 | D179: 111 | E179: Energie | F179: 0 | G179: 40 | H179: 0 | I179: 0 | J179: 0 | K179: 0 | L179: 0
B180: 06.1.0 plyn+el.en. | C180: 632001 | D180: 41 | E180: Energie | F180: 11000 | G180: 12000 | H180: 14000 | I180: 14000 | J180: 12000 | K180: 12200 | L180: 12164
B181: 06.1.0 | C181: 632002 | D181: 41 | E181: Vodné, stočné | F181: 3800 | G181: 1800 | H181: 1000 | I181: 1000 | J181: 2000 | K181: 2074 | L181: 2200
B182: 06.1.0 | C182: 633006 | D182: 41 | E182: Všeobecný materiál | F182: 0 | G182: 5 | H182: 0 | I182: 0 | J182: 0 | K182: 0 | L182: 0
B183: 06.1.0 oprava | C183: 635004 | D183: 41 | E183: Prevádzkových strojov, prístrojov, zariadení, tech | F183: 100 | G183: 100 | H183: 0 | I183: 0 | J183: 0 | K183: 0 | L183: 1000
B184: 06.1.0 | C184: 635004 | D184: 46 | E184: Prevádzkových strojov, prístrojov, zariadení, tech | F184: 0 | G184: 350 | H184: 0 | I184: 0 | J184: 0 | K184: 0 | L184: 0
B185: 06.1.0 | C185: 635006 | D185: 46 | E185: Budov, objektov alebo ich častí | F185: 0 | G185: 150 | H185: 0 | I185: 0 | J185: 0 | K185: 0 | L185: 0
B186: 06.1.0 odvoz odp. vody/čistička odp. vody Okoč | C186: 637004 | D186: 41 | E186: Všeobecné služby | F186: 5000 | G186: 5000 | H186: 3000 | I186: 1000 | J186: 1800 | K186: 1900 | L186: 2000
B187: 06.2.0 Verejná zeleň | C187: 632002 | D187: 41 | E187: Vodné, stočné | F187: 10 | G187: 10 | H187: 0 | I187: 0 | J187: 0 | K187: 0 | L187: 0
B188: 06.2.0 kosačky | C188: 633004 | D188: 41 | E188: Prevádzkové stroje, prístroje, zariadenie, technik | F188: 100 | G188: 100 | H188: 100 | I188: 100 | J188: 100 | K188: 100 | L188: 100
B189: 06.2.0 farby, kvety,... | C189: 633006 | D189: 111 | E189: Všeobecný materiál | F189: 0 | G189: 53 | H189: 50 | I189: 60 | J189: 60 | K189: 70 | L189: 60
B190: 06.2.0 | C190: 633006 | D190: 41 | E190: Všeobecný materiál | F190: 200 | G190: 200 | H190: 100 | I190: 100 | J190: 100 | K190: 100 | L190: 150
B191: 06.2.0 PHM kosačka | C191: 633015 | D191: 41 | E191: Palivá ako zdroj energie | F191: 1000 | G191: 1000 | H191: 1000 | I191: 1000 | J191: 1500 | K191: 1500 | L191: 1500
B192: 06.2.0 oprava | C192: 635004 | D192: 41 | E192: Prevádzkových strojov, prístrojov, zariadení, tech | F192: 100 | G192: 100 | H192: 100 | I192: 100 | J192: 100 | K192: 100 | L192: 100
B193: 06.2.0 | C193: 637004 | D193: 41 | E193: Všeobecné služby ver.zeleň | F193: 0 | G193: 300 | H193: 0 | I193: 0 | J193: 0 | K193: 0 | L193: 0
B194: 06.4.0 Verejné osvetlenie | C194: 632001 | D194: 111 | E194: Energie | F194: 0 | G194: 700 | H194: 0 | I194: 0 | J194: 0 | K194: 0 | L194: 0
B195: 06.4.0 | C195: 632001 | D195: 41 | E195: Energie | F195: 3500 | G195: 3500 | H195: 4000 | I195: 4000 | J195: 2500 | K195: 2500 | L195: 2500
B196: 06.4.0 | C196: 635006 | D196: 41 | E196: Budov, objektov alebo ich častí | F196: 2000 | G196: 500 | H196: 300 | I196: 300 | J196: 300 | K196: 400 | L196: 2000
B197: 07.4.0 | C197: 637004 | D197: 41 | E197: Všeobecné služby postrek proti komárom | F197: 0 | G197: 1000 | H197: 0 | I197: 0 | J197: 0 | K197: 0 | L197: 0
B198: 08.2.0 Kultúra | C198: 632001 | D198: 111 | E198: Energie | F198: 0 | G198: 210 | H198: 0 | I198: 0 | J198: 0 | K198: 0 | L198: 0
B199: 08.2.0 plyn+ el.en. | C199: 632001 | D199: 41 | E199: Energie | F199: 2000 | G199: 3000 | H199: 3500 | I199: 3500 | J199: 3000 | K199: 3000 | L199: 3100
B200: 08.2.0 | C200: 633001 | D200: 35 | E200: Interiérové vybavenie | F200: 0 | G200: 875 | H200: 0 | I200: 0 | J200: 0 | K200: 0 | L200: 0
B201: 08.2.0 | C201: 633006 | D201: 41 | E201: Všeobecný materiál | F201: 100 | G201: 100 | H201: 100 | I201: 100 | J201: 100 | K201: 100 | L201: 100
... 80 more rows

Sheet Rekapitulácia
C6: Obec Brestovec
B7: sumárna tabuľka
B9: Rozpočet na rok 2026 s výhľadom na roky 2027 a 2028 ( v €)
C11: názov | D11: na rok 2026 | E11: na rok 2027 | F11: na rok 2028
C12: Bežné príjmy | D12: 351330 | E12: 357640 | F12: 367240
C13: Bežné výdavky | D13: 329960 | E13: 336270 | F13: 345870
C14: Saldo bežného rozpočtu | D14: 21370 | E14: 21370 | F14: 21370
C15: Kapitálové príjmy | D15: 0 | E15: 0 | F15: 0
C16: Kapitálové výdavky | D16: 0 | E16: 0 | F16: 0
C17: Saldo kapitálového rozpočtu | D17: 0 | E17: 0 | F17: 0
C18: Finančné operácie príjmové | D18: 0 | E18: 0 | F18: 0
C19: Finančné operácie výdavkové | D19: 21370 | E19: 21370 | F19: 21370
C20: Saldo finančných operácií | D20: -21370 | E20: -21370 | F20: -21370
C22: Celkové príjmy | D22: 351330 | E22: 357640 | F22: 367240
C23: Celkové výdavky | D23: 351330 | E23: 357640 | F23: 367240
C25: Celkové saldo | D25: 0 | E25: 0 | F25: 0

Sheet Výdavky
A1: Druh | B1: Funč.kl. | C1: Ekon.kl. | D1: Zdroj | E1: Názov | F1: Schválený | G1: Upravený | H1: Schválený | I1: Schválený | J1: Schválený | K1: Návrh 2027 | L1: Návrh 2028
F2: 2023 | G2: 2023 | H2: 2024 | I2: 2025 | J2: 2026
A3: Výdavky
B4: 01.1.1 obecný úrad | C4: 611 | D4: 1AJ1 | E4: Tarifný plat, osobný plat, základný plat, funkčný | F4: 0 | G4: 16610 | H4: 0 | I4: 0 | J4: 0 | K4: 0 | L4: 0
B5: 01.1.1 | C5: 611 | D5: 41 | E5: Tarifný plat, osobný plat, základný plat, funkčný | F5: 71700 | G5: 55090 | H5: 73000 | I5: 73000 | J5: 80790 | K5: 82000 | L5: 83000
B6: 01.1.1 obecný úrad | C6: 612001 | D6: 41 | E6: Osobný príplatok | F6: 12210 | G6: 12210 | H6: 12000 | I6: 12000 | J6: 12800 | K6: 12500 | L6: 13000
B7: 01.1.1 | C7: 621 | D7: 41 | E7: Poistné do Všeobecnej zdravotnej poisťovne | F7: 2190 | G7: 2190 | H7: 2200 | I7: 2200 | J7: 2690 | K7: 2800 | L7: 2900
B8: 01.1.1 | C8: 623 | D8: 41 | E8: Poistné do ostatných zdravotných poisťovní | F8: 6200 | G8: 6200 | H8: 6300 | I8: 6300 | J8: 7320 | K8: 7400 | L8: 7500
B9: 01.1.1 | C9: 625001 | D9: 41 | E9: Na nemocenské poistenie | F9: 1170 | G9: 1170 | H9: 1190 | I9: 1190 | J9: 1310 | K9: 1300 | L9: 1350
B10: 01.1.1 | C10: 625002 | D10: 41 | E10: Na starobné poistenie | F10: 11750 | G10: 11750 | H10: 11800 | I10: 11800 | J10: 13100 | K10: 13300 | L10: 13700
B11: 01.1.1 | C11: 625003 | D11: 41 | E11: Na úrazové poistenie | F11: 670 | G11: 670 | H11: 680 | I11: 680 | J11: 750 | K11: 770 | L11: 800
B12: 01.1.1 | C12: 625004 | D12: 41 | E12: Na invalidné poistenie | F12: 2515 | G12: 2515 | H12: 2550 | I12: 2550 | J12: 2800 | K12: 3000 | L12: 3200
B13: 01.1.1 | C13: 625005 | D13: 41 | E13: Na poistenie v nezamestnanosti | F13: 840 | G13: 840 | H13: 420 | I13: 420 | J13: 470 | K13: 500 | L13: 520
B14: 01.1.1 | C14: 625005 | D14: 41 | E14: financovanie podpory | F14: 0 | G14: 55 | H14: 420 | I14: 420 | J14: 470 | K14: 500 | L14: 520
B15: 01.1.1 | C15: 625007 | D15: 41 | E15: Na poistenie do rezervného fondu solidarity | F15: 4002 | G15: 4002 | H15: 4000 | I15: 4000 | J15: 4450 | K15: 4600 | L15: 4700
B16: 01.1.1 | C16: 627 | D16: 41 | E16: Príspevok do doplnkových dôchodkových poisťovní | F16: 1885 | G16: 1885 | H16: 1800 | I16: 1800 | J16: 1330 | K16: 1400 | L16: 1450
B17: 01.1.1 | C17: 631001 | D17: 41 | E17: Tuzemské | F17: 2000 | G17: 200 | H17: 100 | I17: 100 | J17: 100 | K17: 110 | L17: 120
B18: 01.1.1 | C18: 632001 | D18: 111 | E18: Energie | F18: 0 | G18: 500 | H18: 0 | I18: 0 | J18: 0 | K18: 0 | L18: 0
B19: 01.1.1 | C19: 632001 | D19: 41 | E19: Energie | F19: 4000 | G19: 4000 | H19: 4000 | I19: 4000 | J19: 4000 | K19: 4000 | L19: 4100
B20: 01.1.1 | C20: 632002 | D20: 41 | E20: Vodné, stočné | F20: 130 | G20: 130 | H20: 140 | I20: 140 | J20: 140 | K20: 150 | L20: 150
B21: 01.1.1 | C21: 632003 | D21: 41 | E21: Poštové služby | F21: 500 | G21: 500 | H21: 550 | I21: 550 | J21: 550 | K21: 600 | L21: 600
B22: 01.1.1 | C22: 632004 | D22: 41 | E22: Komunikačná infraštruktúra | F22: 220 | G22: 220 | H22: 0 | I22: 0 | J22: 0 | K22: 0 | L22: 0
B23: 01.1.1 | C23: 632005 | D23: 41 | E23: Telekomunikačné služby | F23: 930 | G23: 930 | H23: 720 | I23: 720 | J23: 720 | K23: 720 | L23: 750
B24: 01.1.1 | C24: 633003 | D24: 41 | E24: Telekomunikačná technika | F24: 190 | G24: 190 | H24: 0 | I24: 0 | J24: 0 | K24: 0 | L24: 0
B25: 01.1.1 | C25: 633006 | D25: 111 | E25: Všeobecný materiál | F25: 210 | G25: 210 | H25: 185 | I25: 200 | J25: 200 | K25: 200 | L25: 200
B26: 01.1.1 | C26: 633006 | D26: 41 | E26: Všeobecný materiál | F26: 1700 | G26: 1700 | H26: 600 | I26: 600 | J26: 600 | K26: 1000 | L26: 1000
B27: 01.1.1 | C27: 633009 | D27: 41 | E27: Knihy, časopisy, noviny , učebnice, učebné pomôcky | F27: 450 | G27: 450 | H27: 100 | I27: 100 | J27: 100 | K27: 100 | L27: 150
B28: 01.1.1 | C28: 633011 | D28: 41 | E28: Potraviny | F28: 300 | G28: 300 | H28: 300 | I28: 300 | J28: 300 | K28: 300 | L28: 300
B29: 01.1.1 | C29: 633013 | D29: 41 | E29: Softvér | F29: 500 | G29: 500 | H29: 0 | I29: 0 | J29: 0 | K29: 0 | L29: 0
B30: 01.1.1 | C30: 633016 | D30: 35 | E30: Reprezentačné | F30: 0 | G30: 12 | H30: 0 | I30: 0 | J30: 0 | K30: 0 | L30: 0
B31: 01.1.1 | C31: 633016 | D31: 41 | E31: Reprezentačné | F31: 1000 | G31: 1000 | H31: 500 | I31: 500 | J31: 500 | K31: 600 | L31: 700
B32: 01.1.1 | C32: 634004 | D32: 41 | E32: Prepravné a nájom dopravných prostriedkov | F32: 0 | G32: 65 | H32: 0 | I32: 0 | J32: 0 | K32: 0 | L32: 0
B33: 01.1.1 | C33: 634005 | D33: 41 | E33: Karty, známky, poplatky | F33: 0 | G33: 50 | H33: 0 | I33: 0 | J33: 0 | K33: 0 | L33: 0
B34: 01.1.1 | C34: 635004 | D34: 41 | E34: Prevádzkových strojov, prístrojov, zariadení, tech | F34: 0 | G34: 170 | H34: 50 | I34: 50 | J34: 50 | K34: 60 | L34: 70
B35: 01.1.1 | C35: 635009 | D35: 41 | E35: Softvéru | F35: 600 | G35: 600 | H35: 650 | I35: 650 | J35: 650 | K35: 660 | L35: 700
B36: 01.1.1 | C36: 635011 | D36: 41 | E36: Špecializovaného konfigurovateľného softvéru a krab. | F36: 0 | G36: 115 | H36: 120 | I36: 120 | J36: 120 | K36: 130 | L36: 140
B37: 01.1.1 | C37: 637002 | D37: 11H | E37: Konkurzy a súťaže | F37: 0 | G37: 60 | H37: 0 | I37: 0 | J37: 0 | K37: 0 | L37: 0
B38: 01.1.1 | C38: 637002 | D38: 41 | E38: Konkurzy a súťaže | F38: 100 | G38: 1000 | H38: 400 | I38: 400 | J38: 400 | K38: 500 | L38: 500
B39: 01.1.1 | C39: 637004 | D39: 35 | E39: Všeobecné služby | F39: 0 | G39: 523 | H39: 0 | I39: 0 | J39: 0 | K39: 0 | L39: 0
B40: 01.1.1 | C40: 637004 | D40: 41 | E40: Všeobecné služby | F40: 7300 | G40: 6800 | H40: 2000 | I40: 2000 | J40: 2925 | K40: 3545 | L40: 4180
B41: 01.1.1 | C41: 637005 | D41: 35 | E41: Špeciálne služby | F41: 0 | G41: 400 | H41: 0 | I41: 0 | J41: 0 | K41: 0 | L41: 0
B42: 01.1.1 | C42: 637005 | D42: 41 | E42: Špeciálne služby | F42: 1500 | G42: 1100 | H42: 1200 | I42: 1200 | J42: 1200 | K42: 1200 | L42: 1300
B43: 01.1.1 | C43: 637011 | D43: 41 | E43: Štúdie, expertízy, posudky | F43: 500 | G43: 0 | H43: 0 | I43: 0 | J43: 0 | K43: 0 | L43: 0
B44: 01.1.1 | C44: 637012 | D44: 41 | E44: Poplatky a odvody | F44: 100 | G44: 100 | H44: 30 | I44: 30 | J44: 30 | K44: 30 | L44: 30
B45: 01.1.1 | C45: 637014 | D45: 41 | E45: Stravovanie | F45: 1800 | G45: 1800 | H45: 1900 | I45: 1900 | J45: 3600 | K45: 3600 | L45: 3700
B46: 01.1.1 | C46: 637015 | D46: 41 | E46: Poistné | F46: 1000 | G46: 1000 | H46: 1300 | I46: 1300 | J46: 1300 | K46: 1300 | L46: 1300
B47: 01.1.1 | C47: 637016 | D47: 41 | E47: Prídel do sociálneho fondu | F47: 1000 | G47: 1000 | H47: 850 | I47: 850 | J47: 850 | K47: 860 | L47: 870
B48: 01.1.1poslanci | C48: 637026 | D48: 41 | E48: Odmeny a príspevky | F48: 1680 | G48: 1680 | H48: 1600 | I48: 1600 | J48: 1600 | K48: 1600 | L48: 1600
B49: 01.1.1 | C49: 637031 | D49: 41 | E49: Pokuty a penále | F49: 100 | G49: 100 | H49: 100 | I49: 100 | J49: 100 | K49: 100 | L49: 100
B50: 01.1.1 cattering | C50: 637036 | D50: 41 | E50: Reprezentačné výdavky | F50: 200 | G50: 900 | H50: 200 | I50: 200 | J50: 200 | K50: 200 | L50: 200
B51: 01.1.1 | C51: 637040 | D51: 41 | E51: Služby v oblasti informačno-komunikačných technológ. | F51: 110 | G51: 110 | H51: 120 | I51: 120 | J51: 120 | K51: 130 | L51: 130
B52: 01.1.1 | C52: 642001 | D52: 131M | E52: Občianskemu združeniu, nadácii a neinvestičnému fondu | F52: 0 | G52: 625 | H52: 0 | I52: 0 | J52: 0 | K52: 0 | L52: 0
B53: 01.1.1 | C53: 642001 | D53: 3AJ2 | E53: Občianskemu združeniu, nadácii a neinvestičnému fondu | F53: 0 | G53: 5220 | H53: 0 | I53: 0 | J53: 0 | K53: 0 | L53: 0
B54: 01.1.1 | C54: 642006 | D54: 41 | E54: Na členské príspevky | F54: 900 | G54: 900 | H54: 1100 | I54: 1100 | J54: 1100 | K54: 1100 | L54: 1100
B55: 01.1.1 | C55: 642015 | D55: 41 | E55: Na nemocenské dávky | F55: 0 | G55: 125 | H55: 0 | I55: 0 | J55: 0 | K55: 0 | L55: 0
B56: 01.1.2 Finančné a rozpočtové záležitosti | C56: 637005 | D56: 35 | E56: Špeciálne služby | F56: 0 | G56: 1100 | H56: 0 | I56: 0 | J56: 0 | K56: 0 | L56: 0
B57: 01.1.2 audítorské služby | C57: 637005 | D57: 41 | E57: Špeciálne služby | F57: 1000 | G57: 0 | H57: 1200 | I57: 1200 | J57: 1200 | K57: 1200 | L57: 1200
B58: 01.1.2 bankové poplatky | C58: 637012 | D58: 41 | E58: Poplatky a odvody | F58: 700 | G58: 700 | H58: 720 | I58: 720 | J58: 720 | K58: 750 | L58: 800
B59: 01.6.0 | C59: 614 | D59: 111 | E59: Odmeny | F59: 60 | G59: 60 | H59: 0 | I59: 0 | J59: 0 | K59: 0 | L59: 0
B60: 01.6.0 | C60: 625001 | D60: 111 | E60: Na nemocenské poistenie | F60: 0 | G60: 1 | H60: 0 | I60: 0 | J60: 0 | K60: 0 | L60: 0
B61: 01.6.0 | C61: 625002 | D61: 111 | E61: Na starobné poistenie | F61: 0 | G61: 10 | H61: 0 | I61: 0 | J61: 0 | K61: 0 | L61: 0
B62: 01.6.0 | C62: 625003 | D62: 111 | E62: Na úrazové poistenie | F62: 0 | G62: 1 | H62: 0 | I62: 0 | J62: 0 | K62: 0 | L62: 0
B63: 01.6.0 | C63: 625004 | D63: 111 | E63: Na invalidné poistenie | F63: 0 | G63: 2 | H63: 0 | I63: 0 | J63: 0 | K63: 0 | L63: 0
B64: 01.6.0 | C64: 625005 | D64: 111 | E64: Na poistenie v nezamestnanosti | F64: 0 | G64: 1 | H64: 0 | I64: 0 | J64: 0 | K64: 0 | L64: 0
B65: 01.6.0 | C65: 625007 | D65: 111 | E65: Na poistenie do rezervného fondu solidarity | F65: 0 | G65: 3 | H65: 0 | I65: 0 | J65: 0 | K65: 0 | L65: 0
B66: 01.6.0 | C66: 631001 | D66: 131M | E66: Tuzemské | F66: 0 | G66: 10 | H66: 0 | I66: 0 | J66: 0 | K66: 0 | L66: 0
B67: 01.6.0 | C67: 632005 | D67: 111 | E67: Telekomunikačné služby | F67: 0 | G67: 5 | H67: 0 | I67: 0 | J67: 0 | K67: 0 | L67: 0
B68: 01.6.0 | C68: 633006 | D68: 111 | E68: Všeobecný materiál | F68: 0 | G68: 30 | H68: 0 | I68: 0 | J68: 0 | K68: 0 | L68: 0
B69: 01.6.0 | C69: 633016 | D69: 131M | E69: Reprezentačné | F69: 0 | G69: 12 | H69: 0 | I69: 0 | J69: 0 | K69: 0 | L69: 0
B70: 01.6.0 | C70: 637007 | D70: 131M | E70: Cestovné náhrady | F70: 0 | G70: 5 | H70: 0 | I70: 0 | J70: 0 | K70: 0 | L70: 0
B71: 01.6.0 | C71: 637014 | D71: 131M | E71: Stravovanie | F71: 0 | G71: 90 | H71: 0 | I71: 0 | J71: 0 | K71: 0 | L71: 0
B72: 01.6.0 | C72: 637026 | D72: 111 | E72: Odmeny a príspevky | F72: 400 | G72: 400 | H72: 0 | I72: 0 | J72: 0 | K72: 0 | L72: 0
B73: 01.6.0 | C73: 637026 | D73: 131M | E73: Odmeny a príspevky | F73: 0 | G73: 410 | H73: 0 | I73: 0 | J73: 0 | K73: 0 | L73: 0
B74: 01.6.0 | C74: 637027 | D74: 111 | E74: Odmeny zamestnancov mimopracovného pomeru | F74: 0 | G74: 15 | H74: 0 | I74: 0 | J74: 0 | K74: 0 | L74: 0
B75: 01.6.0 | C75: 637037 | D75: 111 | E75: Vratky | F75: 0 | G75: 207 | H75: 0 | I75: 0 | J75: 0 | K75: 0 | L75: 0
B76: 01.6.0 | C76: 637037 | D76: 131M | E76: Vratky | F76: 0 | G76: 147 | H76: 0 | I76: 0 | J76: 0 | K76: 0 | L76: 0
B77: 01.7.0 Prima: úrok z úveru | C77: 651002 | D77: 41 | E77: Banke a pobočke zahraničnej banky | F77: 1000 | G77: 1000 | H77: 2000 | I77: 2000 | J77: 1900 | K77: 1600 | L77: 1400
B78: 01.7.0 ŠFRB: úrok z úveru | C78: 651003 | D78: 41 | E78: Subjektu verejnej správy | F78: 7350 | G78: 7350 | H78: 4870 | I78: 4650 | J78: 4650 | K78: 4470 | L78: 4300
B79: 01.7.0 Prima: popl. správa o úvere | C79: 653001 | D79: 41 | E79: Manipulačné poplatky | F79: 120 | G79: 120 | H79: 40 | I79: 200 | J79: 0 | K79: 0 | L79: 0
B80: 01.7.0 Prima: záväzková provízia | C80: 653002 | D80: 41 | E80: Provízie | F80: 0 | G80: 30 | H80: 20 | I80: 20 | J80: 20 | K80: 15 | L80: 10
B81: 01.7.0 | C81: 653002 | D81: 41 | E81: Záv. provízia ŠFRB | F81: 50 | G81: 50 | H81: 0 | I81: 0 | J81: 0 | K81: 0 | L81: 0
B82: 03.2 požiarna ochrana | C82: 637036 | D82: 41 | E82: Reprezentačné výdavky | F82: 0 | G82: 0 | H82: 0 | I82: 0 | J82: 0 | K82: 0 | L82: 0
B83: 03.2.0 | C83: 623 | D83: 41 | E83: Poistné do ostatných zdravotných poisťovní | F83: 0 | G83: 25 | H83: 0 | I83: 0 | J83: 0 | K83: 0 | L83: 0
B84: 03.2.0 | C84: 625001 | D84: 41 | E84: Na nemocenské poistenie PROFOUND | F84: 0 | G84: 4 | H84: 0 | I84: 0 | J84: 0 | K84: 0 | L84: 0
B85: 03.2.0 | C85: 625002 | D85: 41 | E85: Na starobné poistenie PROFOUND | F85: 0 | G85: 135 | H85: 0 | I85: 0 | J85: 0 | K85: 0 | L85: 0
B86: 03.2.0 | C86: 625003 | D86: 41 | E86: Na úrazové poistenie PROFOUND | F86: 0 | G86: 8 | H86: 0 | I86: 0 | J86: 0 | K86: 0 | L86: 0
B87: 03.2.0 | C87: 625004 | D87: 41 | E87: Na invalidné poistenie PROFOUND | F87: 0 | G87: 29 | H87: 0 | I87: 0 | J87: 0 | K87: 0 | L87: 0
B88: 03.2.0 | C88: 625005 | D88: 41 | E88: Na poistenie v nezamestnanosti PROFOUND | F88: 0 | G88: 3 | H88: 0 | I88: 0 | J88: 0 | K88: 0 | L88: 0
B89: 03.2.0 | C89: 625007 | D89: 41 | E89: Na poistenie do rezervn fondu solidarity PROFOUND | F89: 0 | G89: 45 | H89: 0 | I89: 0 | J89: 0 | K89: 0 | L89: 0
B90: 03.2.0 | C90: 631002 | D90: 41 | E90: Zahraničné | F90: 100 | G90: 100 | H90: 0 | I90: 0 | J90: 0 | K90: 0 | L90: 0
B91: 03.2.0 | C91: 633004 | D91: 41 | E91: Prevádzkové stroje, prístroje, zariadenie, technik | F91: 100 | G91: 500 | H91: 150 | I91: 150 | J91: 0 | K91: 0 | L91: 0
B92: 03.2.0 | C92: 633004 | D92: 71 | E92: Prevádzkové stroje, prístroje, zariadenie, technik | F92: 1500 | G92: 0 | H92: 0 | I92: 0 | J92: 0 | K92: 0 | L92: 0
B93: 03.2.0 | C93: 633006 | D93: 41 | E93: Všeobecný materiál RISKHUB | F93: 200 | G93: 200 | H93: 0 | I93: 0 | J93: 0 | K93: 0 | L93: 0
B94: 03.2.0 | C94: 633010 | D94: 71 | E94: Pracovné odevy, obuv a pracovné pomôcky | F94: 1500 | G94: 3000 | H94: 3000 | I94: 3000 | J94: 3000 | K94: 3000 | L94: 3000
B95: 03.2.0 | C95: 633016 | D95: 41 | E95: Reprezentačné | F95: 100 | G95: 100 | H95: 0 | I95: 0 | J95: 0 | K95: 0 | L95: 0
B96: 03.2.0 | C96: 634001 | D96: 41 | E96: Fiat,Rexton - Palivo, mazivá, oleje, špeciálne kvapaliny | F96: 1000 | G96: 1000 | H96: 1000 | I96: 1000 | J96: 1500 | K96: 1700 | L96: 1800
B97: 03.2.0 | C97: 634002 | D97: 41 | E97: Servis, údržba, opravy a výdavky s tým spojené | F97: 500 | G97: 500 | H97: 100 | I97: 100 | J97: 100 | K97: 100 | L97: 150
B98: 03.2.0 | C98: 634002 | D98: 41 | E98: frekvencia DHZ-požiarna služba | F98: 0 | G98: 25 | H98: 30 | I98: 70 | J98: 70 | K98: 70 | L98: 70
B99: 03.2.0 | C99: 634003 | D99: 41 | E99: Poistenie | F99: 1030 | G99: 1030 | H99: 1030 | I99: 1030 | J99: 1500 | K99: 1500 | L99: 1500
B100: 03.2.0 | C100: 634005 | D100: 41 | E100: Karty, známky, poplatky | F100: 150 | G100: 150 | H100: 150 | I100: 150 | J100: 150 | K100: 150 | L100: 180
B101: 03.2.0 | C101: 637001 | D101: 41 | E101: Školenia, kurzy, semináre, porady, PROFOUND VZ | F101: 200 | G101: 0 | H101: 0 | I101: 0 | J101: 0 | K101: 0 | L101: 0
B102: 03.2.0. | C102: 630 | D102: 52 | E102: Školenie, kurzy, semináre, porady, materiál HUSKRISK VZ | F102: 0 | G102: 0 | H102: 0 | I102: 3511 | J102: 0 | K102: 0 | L102: 0
B103: 03.2.0 | C103: 630 | D103: 52 | E103: Školenia, kurzy, semináre, porady, materiál HUSKRISK EU, ŠR | F103: 0 | G103: 0 | H103: 0 | I103: 9519 | J103: 0 | K103: 0 | L103: 0
B104: 03.2.0 | C104: 637027 | D104: 41 | E104: Odmeny zamestnancov mimopr. pom. PROFOUND | F104: 0 | G104: 955 | H104: 0 | I104: 0 | J104: 0 | K104: 0 | L104: 0
B105: 04.4.3 prísp. pre spol. stav.úrad | C105: 641006 | D105: 41 | E105: Rozpočtovej organizácii | F105: 400 | G105: 400 | H105: 300 | I105: 400 | J105: 400 | K105: 400 | L105: 400
B106: 04.5.1 | C106: 633006 | D106: 41 | E106: Všeobecný materiál | F106: 0 | G106: 300 | H106: 0 | I106: 0 | J106: 0 | K106: 0 | L106: 0
B107: 04.7.3 | C107: 637002 | D107: 11H | E107: Konkurzy a súťaže | F107: 0 | G107: 1029 | H107: 0 | I107: 0 | J107: 0 | K107: 0 | L107: 0
B108: 04.7.3 | C108: 637002 | D108: 41 | E108: Konkurzy a súťaže | F108: 0 | G108: 250 | H108: 0 | I108: 0 | J108: 0 | K108: 0 | L108: 0
B109: 05.1.0 odpad | C109: 611 | D109: 41 | E109: Tarifný plat, osobný plat, základný plat, funkčný | F109: 19260 | G109: 19260 | H109: 21900 | I109: 21900 | J109: 24000 | K109: 24000 | L109: 24000
B110: 05.1.0 | C110: 623 | D110: 41 | E110: Poistné do ostatných zdravotných poisťovní | F110: 1925 | G110: 1925 | H110: 2180 | I110: 2180 | J110: 2640 | K110: 2640 | L110: 2640
B111: 05.1.0 | C111: 625001 | D111: 41 | E111: Na nemocenské poistenie | F111: 270 | G111: 270 | H111: 300 | I111: 300 | J111: 336 | K111: 336 | L111: 336
B112: 05.1.0 | C112: 625002 | D112: 41 | E112: Na starobné poistenie | F112: 2695 | G112: 2695 | H112: 3000 | I112: 3000 | J112: 3360 | K112: 3360 | L112: 3360
B113: 05.1.0 | C113: 625003 | D113: 41 | E113: Na úrazové poistenie | F113: 154 | G113: 154 | H113: 170 | I113: 170 | J113: 190 | K113: 190 | L113: 190
B114: 05.1.0 | C114: 625004 | D114: 41 | E114: Na invalidné poistenie | F114: 575 | G114: 575 | H114: 600 | I114: 600 | J114: 720 | K114: 720 | L114: 720
B115: 05.1.0 | C115: 625005 | D115: 41 | E115: Na poistenie v nezamestnanosti | F115: 190 | G115: 190 | H115: 110 | I115: 110 | J115: 120 | K115: 120 | L115: 120
B116: 05.1.0 | C116: 625005 | D116: 41 | E116: Financovanie podpory | F116: 0 | G116: 0 | H116: 110 | I116: 110 | J116: 120 | K116: 120 | L116: 120
B117: 05.1.0 | C117: 625007 | D117: 41 | E117: Na poistenie do rezervného fondu solidarity | F117: 915 | G117: 915 | H117: 1040 | I117: 1040 | J117: 1140 | K117: 1140 | L117: 1140
B118: 05.1.0 | C118: 627 | D118: 41 | E118: Príspevok do doplnkových dôchodkových poisťovní | F118: 270 | G118: 270 | H118: 290 | I118: 290 | J118: 330 | K118: 330 | L118: 330
B119: 05.1.0 | C119: 632001 | D119: 111 | E119: Energie | F119: 0 | G119: 380 | H119: 0 | I119: 0 | J119: 0 | K119: 0 | L119: 0
B120: 05.1.0 | C120: 632001 | D120: 41 | E120: Energie | F120: 1000 | G120: 3000 | H120: 1000 | I120: 1000 | J120: 1000 | K120: 1000 | L120: 1000
B121: 05.1.0 | C121: 633006 | D121: 41 | E121: Všeobecný materiál | F121: 50 | G121: 50 | H121: 0 | I121: 0 | J121: 0 | K121: 0 | L121: 0
B122: 05.1.0 | C122: 633010 | D122: 41 | E122: Pracovné odevy, obuv a pracovné pomôcky | F122: 50 | G122: 50 | H122: 0 | I122: 0 | J122: 0 | K122: 0 | L122: 0
B123: 05.1.0 traktor | C123: 634001 | D123: 41 | E123: Palivo, mazivá, oleje, špeciálne kvapaliny | F123: 3000 | G123: 3000 | H123: 2000 | I123: 2000 | J123: 2000 | K123: 2500 | L123: 2500
B124: 05.1.0 | C124: 634002 | D124: 41 | E124: Servis, údržba, opravy a výdavky s tým spojené | F124: 500 | G124: 1500 | H124: 300 | I124: 300 | J124: 300 | K124: 300 | L124: 400
B125: 05.1.0 | C125: 634003 | D125: 41 | E125: Poistenie | F125: 850 | G125: 850 | H125: 1200 | I125: 800 | J125: 800 | K125: 800 | L125: 800
B126: 05.1.0 | C126: 637004 | D126: 3AJ1 | E126: Všeobecné služby | F126: 0 | G126: 2350 | H126: 0 | I126: 0 | J126: 0 | K126: 0 | L126: 0
B127: 05.1.0 | C127: 637004 | D127: 3AJ2 | E127: Všeobecné služby | F127: 0 | G127: 1720 | H127: 0 | I127: 0 | J127: 0 | K127: 0 | L127: 0
B128: 05.1.0 odvoz a ulož. Odpadu | C128: 637004 | D128: 41 | E128: Všeobecné služby | F128: 11000 | G128: 4650 | H128: 10900 | I128: 10900 | J128: 16000 | K128: 16000 | L128: 16000
B129: 05.1.0 | C129: 637004 | D129: 45 | E129: Všeobecné služby | F129: 0 | G129: 2560 | H129: 0 | I129: 0 | J129: 0 | K129: 0 | L129: 0
B130: 05.1.0 popl. za ulož. Odpadu | C130: 637012 | D130: 41 | E130: Poplatky a odvody | F130: 2000 | G130: 2000 | H130: 2000 | I130: 2000 | J130: 2000 | K130: 2000 | L130: 2000
B131: 05.1.0 | C131: 637014 | D131: 41 | E131: Stravovanie | F131: 1100 | G131: 1100 | H131: 1100 | I131: 1100 | J131: 1500 | K131: 1600 | L131: 1600
B132: 05.1.0 | C132: 637016 | D132: 41 | E132: Prídel do sociálneho fondu | F132: 250 | G132: 250 | H132: 230 | I132: 230 | J132: 270 | K132: 280 | L132: 290
B133: 05.4.0 | C133: 642029 | D133: 41 | E133: Na náhradu-za stratu mimoprodukčn. funkcií lesa | F133: 0 | G133: 1310 | H133: 0 | I133: 0 | J133: 0 | K133: 0 | L133: 0
B134: 05.6.0 | C134: 633006 | D134: 111 | E134: Všeobecný materiál | F134: 50 | G134: 50 | H134: 0 | I134: 0 | J134: 0 | K134: 0 | L134: 0
B135: 06.1.0 Nájomné byty | C135: 632001 | D135: 111 | E135: Energie | F135: 0 | G135: 40 | H135: 0 | I135: 0 | J135: 0 | K135: 0 | L135: 0
B136: 06.1.0 plyn+el.en. | C136: 632001 | D136: 41 | E136: Energie | F136: 11000 | G136: 12000 | H136: 14000 | I136: 14000 | J136: 12000 | K136: 12200 | L136: 12164
B137: 06.1.0 | C137: 632002 | D137: 41 | E137: Vodné, stočné | F137: 3800 | G137: 1800 | H137: 1000 | I137: 1000 | J137: 2000 | K137: 2074 | L137: 2200
B138: 06.1.0 | C138: 633006 | D138: 41 | E138: Všeobecný materiál | F138: 0 | G138: 5 | H138: 0 | I138: 0 | J138: 0 | K138: 0 | L138: 0
B139: 06.1.0 oprava | C139: 635004 | D139: 41 | E139: Prevádzkových strojov, prístrojov, zariadení, tech | F139: 100 | G139: 100 | H139: 0 | I139: 0 | J139: 0 | K139: 0 | L139: 1000
B140: 06.1.0 | C140: 635004 | D140: 46 | E140: Prevádzkových strojov, prístrojov, zariadení, tech | F140: 0 | G140: 350 | H140: 0 | I140: 0 | J140: 0 | K140: 0 | L140: 0
B141: 06.1.0 | C141: 635006 | D141: 46 | E141: Budov, objektov alebo ich častí | F141: 0 | G141: 150 | H141: 0 | I141: 0 | J141: 0 | K141: 0 | L141: 0
B142: 06.1.0 odvoz odp. vody/čistička odp. vody Okoč | C142: 637004 | D142: 41 | E142: Všeobecné služby | F142: 5000 | G142: 5000 | H142: 3000 | I142: 1000 | J142: 1800 | K142: 1900 | L142: 2000
B143: 06.2.0 Verejná zeleň | C143: 632002 | D143: 41 | E143: Vodné, stočné | F143: 10 | G143: 10 | H143: 0 | I143: 0 | J143: 0 | K143: 0 | L143: 0
B144: 06.2.0 kosačky, náhr. Diely | C144: 633004 | D144: 41 | E144: Prevádzkové stroje, prístroje, zariadenie, technik | F144: 100 | G144: 100 | H144: 100 | I144: 100 | J144: 100 | K144: 100 | L144: 100
B145: 06.2.0 farby, kvety,... | C145: 633006 | D145: 111 | E145: Všeobecný materiál | F145: 0 | G145: 53 | H145: 50 | I145: 60 | J145: 60 | K145: 70 | L145: 60
B146: 06.2.0 | C146: 633006 | D146: 41 | E146: Všeobecný materiál | F146: 200 | G146: 200 | H146: 100 | I146: 100 | J146: 100 | K146: 100 | L146: 150
B147: 06.2.0 PHM kosačka | C147: 633015 | D147: 41 | E147: Palivá ako zdroj energie | F147: 1000 | G147: 1000 | H147: 1000 | I147: 1000 | J147: 1500 | K147: 1500 | L147: 1500
B148: 06.2.0 oprava | C148: 635004 | D148: 41 | E148: Prevádzkových strojov, prístrojov, zariadení, tech | F148: 100 | G148: 100 | H148: 100 | I148: 100 | J148: 100 | K148: 100 | L148: 100
B149: 06.2.0 | C149: 637004 | D149: 41 | E149: Všeobecné služby ver.zeleň | F149: 0 | G149: 300 | H149: 0 | I149: 0 | J149: 0 | K149: 0 | L149: 0
B150: 06.4.0 Verejné osvetlenie | C150: 632001 | D150: 111 | E150: Energie | F150: 0 | G150: 700 | H150: 0 | I150: 0 | J150: 0 | K150: 0 | L150: 0
B151: 06.4.0 | C151: 632001 | D151: 41 | E151: Energie | F151: 3500 | G151: 3500 | H151: 4000 | I151: 4000 | J151: 2500 | K151: 2500 | L151: 2500
B152: 06.4.0 | C152: 635006 | D152: 41 | E152: Budov, objektov alebo ich častí | F152: 2000 | G152: 500 | H152: 300 | I152: 300 | J152: 300 | K152: 400 | L152: 2000
B153: 07.4.0 | C153: 637004 | D153: 41 | E153: Všeobecné služby postrek proti komárom | F153: 0 | G153: 1000 | H153: 0 | I153: 0 | J153: 0 | K153: 0 | L153: 0
B154: 08.2.0 Kultúra | C154: 632001 | D154: 111 | E154: Energie | F154: 0 | G154: 210 | H154: 0 | I154: 0 | J154: 0 | K154: 0 | L154: 0
B155: 08.2.0 plyn+ el.en. | C155: 632001 | D155: 41 | E155: Energie | F155: 2000 | G155: 3000 | H155: 3500 | I155: 3500 | J155: 3000 | K155: 3000 | L155: 3100
B156: 08.2.0 | C156: 633001 | D156: 35 | E156: Interiérové vybavenie | F156: 0 | G156: 875 | H156: 0 | I156: 0 | J156: 0 | K156: 0 | L156: 0
B157: 08.2.0 | C157: 633006 | D157: 41 | E157: Všeobecný materiál | F157: 100 | G157: 100 | H157: 100 | I157: 100 | J157: 100 | K157: 100 | L157: 100
B158: 08.2.0 | C158: 635006 | D158: 41 | E158: Budov, objektov alebo ich častí | F158: 0 | G158: 300 | H158: 0 | I158: 0 | J158: 0 | K158: 0 | L158: 0
B159: 08.2.0 | C159: 637002 | D159: 11H | E159: Konkurzy a súťaže | F159: 0 | G159: 1000 | H159: 0 | I159: 0 | J159: 0 | K159: 0 | L159: 0
B160: 08.2.0 | C160: 637002 | D160: 41 | E160: Konkurzy a súťaže | F160: 150 | G160: 1050 | H160: 150 | I160: 150 | J160: 150 | K160: 150 | L160: 460
B161: 08.3.0 Vysielacie a vydavateľské služby | C161: 637026 | D161: 41 | E161: Odmeny a príspevky | F161: 20 | G161: 20 | H161: 20 | I161: 20 | J161: 20 | K161: 20 | L161: 20
B162: 08.3.0 | C162: 637035 | D162: 41 | E162: Dane | F162: 225 | G162: 225 | H162: 0 | I162: 0 | J162: 0 | K162: 0 | L162: 0
B163: 08.4.0 cintorín, DS | C163: 632001 | D163: 111 | E163: Energie | F163: 0 | G163: 20 | H163: 0 | I163: 0 | J163: 0 | K163: 0 | L163: 0
B164: 08.4.0 | C164: 632001 | D164: 41 | E164: Energie | F164: 400 | G164: 400 | H164: 500 | I164: 500 | J164: 500 | K164: 500 | L164: 500
B165: 08.4.0 | C165: 632002 | D165: 41 | E165: Vodné, stočné | F165: 100 | G165: 100 | H165: 50 | I165: 50 | J165: 100 | K165: 110 | L165: 120
B166: 08.4.0 | C166: 633006 | D166: 41 | E166: Všeobecný materiál | F166: 100 | G166: 100 | H166: 50 | I166: 50 | J166: 50 | K166: 50 | L166: 50
B167: 09.1.1.1 Materská škola | C167: 611 | D167: 41 | E167: Tarifný plat, osobný plat, základný plat, funkčný | F167: 34250 | G167: 34250 | H167: 39440 | I167: 3065 | J167: 15739 | K167: 16000 | L167: 16500
B168: 09.1.1.1 | C168: 611 | D168: 111 | E168: Tarifný plat, osobný plat, základný plat, funkčný | F168: 0 | G168: 0 | H168: 0 | I168: 36935 | J168: 30201 | K168: 30955 | L168: 32105
B169: 09.1.1.1 | C169: 612001 | D169: 111 | E169: Osobné príplatky | F169: 0 | G169: 0 | H169: 0 | I169: 0 | J169: 3260 | K169: 3400 | L169: 3500
B170: 09.1.1.1 | C170: 612002 | D170: 41 | E170: Ostatné príplatky okrem osobných príplatkov | F170: 1265 | G170: 1265 | H170: 1800 | I170: 0 | J170: 0 | K170: 0 | L170: 0
B171: 09.1.1.1 | C171: 612002 | D171: 111 | E171: Ostatné príplatky okrem osobných príplatkov | F171: 0 | G171: 0 | H171: 0 | I171: 1800 | J171: 3270 | K171: 3400 | L171: 3500
B172: 09.1.1.1 | C172: 621 | D172: 41 | E172: Poistné do Všeobecnej zdravotnej poisťovne | F172: 790 | G172: 790 | H172: 2700 | I172: 0 | J172: 0 | K172: 0 | L172: 0
B173: 09.1.1.1 | C173: 621 | D173: 111 | E173: Poistné do Všeobecnej zdravotnej poisťovne | F173: 0 | G173: 0 | H173: 0 | I173: 2800 | J173: 3900 | K173: 4000 | L173: 4100
B174: 09.1.1.1 | C174: 623 | D174: 41 | E174: Poistné do ostatných zdravotných poisťovní | F174: 2760 | G174: 2760 | H174: 1400 | I174: 0 | J174: 0 | K174: 0 | L174: 0
B175: 09.1.1.1 | C175: 623 | D175: 111 | E175: Poistné do ostatných zdravotných poisťovní | F175: 0 | G175: 0 | H175: 0 | I175: 1500 | J175: 1870 | K175: 1920 | L175: 1670
B176: 09.1.1.1 | C176: 625001 | D176: 41 | E176: Na nemocenské poistenie | F176: 490 | G176: 490 | H176: 580 | I176: 0 | J176: 0 | K176: 0 | L176: 0
B177: 09.1.1.1 | C177: 625001 | D177: 111 | E177: Na nemocenské poistenie | F177: 0 | G177: 0 | H177: 0 | I177: 590 | J177: 735 | K177: 780 | L177: 800
B178: 09.1.1.1 | C178: 625002 | D178: 41 | E178: Na starobné poistenie | F178: 4970 | G178: 4970 | H178: 5700 | I178: 0 | J178: 0 | K178: 0 | L178: 0
B179: 09.1.1.1 | C179: 625002 | D179: 111 | E179: Na starobné poistenie | F179: 0 | G179: 0 | H179: 0 | I179: 5800 | J179: 7350 | K179: 7500 | L179: 7700
B180: 09.1.1.1 | C180: 625003 | D180: 41 | E180: Na úrazové poistenie | F180: 280 | G180: 280 | H180: 330 | I180: 0 | J180: 0 | K180: 0 | L180: 0
B181: 09.1.1.1 | C181: 625003 | D181: 111 | E181: Na úrazové poistenie | F181: 0 | G181: 0 | H181: 0 | I181: 330 | J181: 420 | K181: 450 | L181: 470
B182: 09.1.1.1 | C182: 625004 | D182: 41 | E182: Na invalidné poistenie | F182: 1060 | G182: 1060 | H182: 1100 | I182: 0 | J182: 0 | K182: 0 | L182: 0
B183: 09.1.1.1 | C183: 625004 | D183: 111 | E183: Na invalidné poistenie | F183: 0 | G183: 0 | H183: 0 | I183: 1250 | J183: 1575 | K183: 1700 | L183: 1800
B184: 09.1.1.1 | C184: 625005 | D184: 41 | E184: Na poistenie v nezamestnanosti | F184: 355 | G184: 355 | H184: 210 | I184: 0 | J184: 0 | K184: 0 | L184: 0
B185: 09.1.1.1 | C185: 625005 | D185: 111 | E185: Na poistenie v nezamestnanosti | F185: 0 | G185: 0 | H185: 0 | I185: 210 | J185: 262 | K185: 280 | L185: 300
B186: 09.1.1.1 | C186: 625005 | D186: 41 | E186: Financovanie podpory | F186: 0 | G186: 0 | H186: 210 | I186: 0 | J186: 0 | K186: 0 | L186: 0
B187: 09.1.1.1 | C187: 625005 | D187: 111 | E187: Financovanie podpory | F187: 0 | G187: 0 | H187: 0 | I187: 210 | J187: 262 | K187: 280 | L187: 300
B188: 09.1.1.1 | C188: 625007 | D188: 41 | E188: Na poistenie do rezervného fondu solidarity | F188: 1680 | G188: 1680 | H188: 1900 | I188: 0 | J188: 0 | K188: 0 | L188: 0
B189: 09.1.1.1 | C189: 625007 | D189: 111 | E189: Na poistenie do rezervného fondu solidarity | F189: 0 | G189: 0 | H189: 0 | I189: 1980 | J189: 2490 | K189: 2700 | L189: 2900
B190: 09.1.1.1 | C190: 627 | D190: 41 | E190: Príspevok do doplnkových dôchodkových poisťovní | F190: 120 | G190: 120 | H190: 120 | I190: 0 | J190: 0 | K190: 0 | L190: 0
B191: 09.1.1.1 | C191: 627 | D191: 111 | E191: Príspevok do doplnkových dôchodkových poisťovní | F191: 0 | G191: 0 | H191: 0 | I191: 120 | J191: 120 | K191: 120 | L191: 120
B192: 09.1.1.1 | C192: 631001 | D192: 41 | E192: Tuzemské | F192: 50 | G192: 50 | H192: 50 | I192: 0 | J192: 0 | K192: 0 | L192: 0
B193: 09.1.1.1 | C193: 631001 | D193: 111 | E193: Tuzemské | F193: 0 | G193: 0 | H193: 0 | I193: 50 | J193: 50 | K193: 50 | L193: 50
B194: 09.1.1.1 | C194: 632001 | D194: 111 | E194: Energie | F194: 1480 | G194: 200 | H194: 0 | I194: 4000 | J194: 3000 | K194: 3100 | L194: 3200
B195: 09.1.1.1 el.en.+plyn | C195: 632001 | D195: 41 | E195: Energie | F195: 1600 | G195: 3600 | H195: 4000 | I195: 0 | J195: 0 | K195: 0 | L195: 0
B196: 09.1.1.1 | C196: 632002 | D196: 41 | E196: Vodné, stočné | F196: 70 | G196: 70 | H196: 50 | I196: 0 | J196: 0 | K196: 0 | L196: 0
B197: 09.1.1.1 | C197: 632002 | D197: 111 | E197: Vodné, stočné | F197: 0 | G197: 0 | H197: 0 | I197: 50 | J197: 70 | K197: 80 | L197: 90
B198: 09.1.1.1 | C198: 632003 | D198: 41 | E198: Poštové služby | F198: 15 | G198: 15 | H198: 0 | I198: 0 | J198: 0 | K198: 0 | L198: 0
B199: 09.1.1.1 | C199: 632004 | D199: 111 | E199: Komunikačná infraštruktúra | F199: 0 | G199: 0 | H199: 0 | I199: 40 | J199: 40 | K199: 40 | L199: 40
B200: 09.1.1.1 internet. Služby | C200: 632004 | D200: 41 | E200: Komunikačná infraštruktúra | F200: 350 | G200: 50 | H200: 40 | I200: 0 | J200: 0 | K200: 0 | L200: 0
... 37 more rows

Sheet Príjmy
A1: Druh | B1: Funč.kl. | C1: Ekon.kl. | D1: Zdroj | E1: Názov | F1: Schválený | G1: Upravený | H1: Schválený 2024 | I1: Schválený 2025 | J1: Schválený 2026 | K1: Návrh 2027 | L1: Návrh 2028
F2: 2023 | G2: 2023
A3: Príjmy
C5: 111003 | D5: 41 | E5: Výnos dane z príjmov poukázaný územnej samospráve | F5: 189590 | G5: 189590 | H5: 195000 | I5: 140000 | J5: 156800 | K5: 161700 | L5: 170300
C6: 121001 | D6: 41 | E6: Z pozemkov | F6: 35185 | G6: 35185 | H6: 35200 | I6: 38300 | J6: 40050 | K6: 40050 | L6: 40050
C7: 121002 | D7: 41 | E7: Zo stavieb | F7: 9870 | G7: 9870 | H7: 10300 | I7: 10500 | J7: 10830 | K7: 10830 | L7: 10830
C8: 133001 | D8: 41 | E8: Za psa | F8: 830 | G8: 830 | H8: 830 | I8: 860 | J8: 1410 | K8: 1410 | L8: 1410
C9: 133012 | D9: 41 | E9: Za užívanie verejného priestranstva | F9: 130 | G9: 130 | H9: 140 | I9: 140 | J9: 150 | K9: 150 | L9: 150
C10: 133013 | D10: 41 | E10: Za komunálne odpady a drobné stavebné odpady | F10: 18350 | G10: 18350 | H10: 19500 | I10: 24700 | J10: 25860 | K10: 25860 | L10: 25860
C11: 212002 | D11: 41 | E11: Z prenajatých pozemkov/nájomné pohr. miesta | F11: 740 | G11: 740 | H11: 400 | I11: 800 | J11: 900 | K11: 900 | L11: 900
C12: 212003 | D12: 41 | E12: Z prenajatých budov, priestorov a objektov | F12: 32700 | G12: 32700 | H12: 33000 | I12: 33000 | J12: 33000 | K12: 33000 | L12: 33000
C13: 212004 | D13: 41 | E13: Z prenajatých strojov, prístrojov, zariadení, tech | F13: 0 | G13: 70 | H13: 70 | I13: 70 | J13: 70 | K13: 70 | L13: 70
C14: 221002 | D14: 41 | E14: Správne poplatky | F14: 3200 | G14: 3200 | H14: 3300 | I14: 3300 | J14: 3000 | K14: 3000 | L14: 3000
C15: 223001 | D15: 41 | E15: Za predaj výrobkov, tovarov a služieb/NB služby | F15: 13400 | G15: 13400 | H15: 13500 | I15: 12200 | J15: 12200 | K15: 12200 | L15: 12200
C16: 223001 | D16: 41 | E16: Za predaj výrobkov, tovarov a služieb/za odvoz. odpadovej vody | F16: 0 | G16: 0 | H16: 0 | I16: 300 | J16: 300 | K16: 400 | L16: 400
C17: 223001 | D17: 41 | E17: Za predaj výrobkov, tovarov a služieb/cint. popl., rozhlas. popl. | F17: 0 | G17: 0 | H17: 0 | I17: 200 | J17: 200 | K17: 300 | L17: 300
C18: 223002 | D18: 41 | E18: Za školy a školské zariadenia/príjem od rodičov Mš | F18: 1300 | G18: 1300 | H18: 1300 | I18: 1300 | J18: 1300 | K18: 1500 | L18: 1500
C19: 292012 | D19: 41 | E19: Z dobropisov | F19: 0 | G19: 3850 | H19: 0 | I19: 0 | J19: 0 | K19: 0 | L19: 0
C20: 292017 | D20: 41 | E20: Z vratiek/preplatky ZP- zamestnávateľ, Dôvera / | F20: 0 | G20: 92 | H20: 0 | I20: 0 | J20: 0 | K20: 0 | L20: 0
C21: 312001 | D21: 111 | E21: Zo štátneho rozpočtu okrem transferu na úhradu nák | F21: 0 | G21: 1280 | H21: 0 | I21: 0 | J21: 0 | K21: 0 | L21: 0
C22: 312001 | D22: 111 | E22: Zo štátneho rozpočtu okrem transferu na úhradu nák | F22: 0 | G22: 2090 | H22: 0 | I22: 0 | J22: 0 | K22: 0 | L22: 0
C23: 312001 | D23: 11UA | E23: Zo štátneho rozpočtu okrem transferu na úhradu nák | F23: 0 | G23: 2430 | H23: 0 | I23: 0 | J23: 0 | K23: 0 | L23: 0
C24: 312001 | D24: 3AJ1 | E24: Zo štátneho rozpočtu okrem transferu na úhradu nák | F24: 0 | G24: 2350 | H24: 0 | I24: 0 | J24: 0 | K24: 0 | L24: 0
C25: 312001 | D25: 3AJ2 | E25: Zo štátneho rozpočtu okrem transferu na úhradu nák | F25: 0 | G25: 6940 | H25: 0 | I25: 0 | J25: 0 | K25: 0 | L25: 0
C26: 312002 | D26: 45 | E26: Dotácia z Environm. fondu/bežný transfer | F26: 0 | G26: 2560 | H26: 0 | I26: 0 | J26: 0 | K26: 0 | L26: 0
C27: 312007 | D27: 11H | E27: Z rozpočtu obce | F27: 0 | G27: 60 | H27: 0 | I27: 0 | J27: 0 | K27: 0 | L27: 0
C28: 312008 | D28: 11H | E28: Z rozpočtu vyššieho územného celku | F28: 0 | G28: 2029 | H28: 0 | I28: 0 | J28: 0 | K28: 0 | L28: 0
C29: 312012 | D29: 111 | E29: Transfery zo ŠR na prenesený výkon štátnej správy- Materská škola | F29: 0 | G29: 0 | H29: 0 | I29: 60500 | J29: 62000 | K29: 63000 | L29: 64000
C30: 312012 | D30: 111 | E30: Transfery zo ŠR na prenesený výkon štátnej správy- register obyvateľstva, register adries, živ. prostr. | F30: 3400 | G30: 2950 | H30: 3800 | I30: 260 | J30: 260 | K30: 270 | L30: 270
C31: 315 | D31: 71 | E31: Transfery od subjektov nezaradených vo verejnej sp | F31: 3000 | G31: 3000 | H31: 3000 | I31: 3000 | J31: 3000 | K31: 3000 | L31: 3000
C32: 331001 | D32: 35 | E32: Od zahraničného subjektu iného ako medzinárodná or | F32: 0 | G32: 2910 | H32: 0 | I32: 0 | J32: 0 | K32: 0 | L32: 0
C33: 341 | D33: 1AJ1 | E33: Prostriedky z rozpočtu Európskej únie PROFOUND | F33: 0 | G33: 16610 | H33: 0 | I33: 0 | J33: 0 | K33: 0 | L33: 0
A34: *1 | E34: 1-bežný rozpočet | F34: =SUM(F5:F33) -> 311695 | G34: 354516 | H34: 319340 | I34: 329430 | J34: 351330 | K34: 357640 | L34: 367240
A35: 2 | E35: 2-kapitálový rozpočet
C36: 322006 | D36: 11H | E36: Z rozpočtu vyššieho územného celku | F36: 0 | G36: 4986 | H36: 0 | I36: 0 | J36: 0 | K36: 0 | L36: 0
A37: *2 | E37: 2-kapitálový rozpočet | F37: 0 | G37: 4986 | H37: 0 | I37: 0 | J37: 0 | K37: 0 | L37: 0
A38: 3 | E38: 3-finančné operácie
C39: 453 | D39: 131M | E39: Prostriedky z predchádzajúcich rokov | F39: 0 | G39: 1299 | H39: 0 | I39: 0 | J39: 0 | K39: 0 | L39: 0
C40: 453 | D40: 46 | E40: Prostriedky z predchádzajúcich rokov | F40: 0 | G40: 500 | H40: 0 | I40: 0 | J40: 0 | K40: 0 | L40: 0
C41: 513001 | D41: 52 | E41: Krátkodobé | F41: 0 | G41: 17225 | H41: 0 | I41: 0 | J41: 0 | K41: 0 | L41: 0
C42: 513002 | D42: 52 | E42: Dlhodobé- SZRB úver /HUSKRISK...EU, ŠR, VZ | F42: 0 | G42: 0 | H42: 0 | I42: 16184 | J42: 0 | K42: 0 | L42: 0
A43: *3 | E43: 3-finančné operácie | F43: 0 | G43: 19024 | H43: 0 | I43: 16184 | J43: 0 | K43: 0 | L43: 0
A44: Spolu | E44: Príjmy spolu | F44: 311695 | G44: 378526 | H44: 319340 | I44: 345614 | J44: =SUM(J34:J43) -> 351330 | K44: =SUM(K34:K43) -> 357640 | L44: =SUM(L34:L43) -> 367240
